bitfinex/quotes_SOLUSD_20250422
["timestamp","ask_amount","ask_price","bid_price","bid_amount"]
[1745345582584,26.9319675,144.78,144.74,20.0247399]
[1745345582992,38.67964886,144.81,144.71,26.0]
[1745345583202,20.0247399,144.74,144.71,26.0]
[1745345583399,20.0,144.79,144.71,26.0]
[1745345583400,20.0247399,144.73,144.71,26.0]
[1745345583703,20.0247399,144.73,144.7,26.0]
[1745345584099,20.0247399,144.73,144.68,20.0247399]
[1745345584100,20.0247399,144.73,144.68,46.0247399]
[1745345584582,20.0,144.77,144.7,20.0247399]
[1745345584786,20.0247399,144.77,144.72,20.0247399]
[1745345585303,20.0247399,144.76,144.72,20.0247399]
[1745345585880,26.93303593,144.76,144.72,20.0247399]
[1745345586088,6.90829603,144.76,144.72,20.0247399]
[1745345586583,26.93303593,144.76,144.71,20.0247399]
[1745345587703,6.90829603,144.76,144.72,20.0247399]
[1745345589405,26.93303593,144.76,144.69,6.91111]
[1745345589618,26.93303593,144.76,144.71,20.0247399]
[1745345589807,6.90829603,144.76,144.72,20.0247399]
[1745345589998,26.93303593,144.76,144.71,20.0247399]
[1745345590196,20.0247399,144.75,144.7,20.0247399]
[1745345591017,20.0247399,144.75,144.68,114.88161401]
[1745345591198,6.90894016,144.74,144.71,20.0247399]
[1745345591399,6.90859328,144.75,144.72,20.0247399]
[1745345592514,6.90798563,144.76,144.72,20.0247399]
[1745345593810,6.90798563,144.76,144.69,26.93604426]
[1745345594002,26.93272553,144.76,144.68,114.88174935]
[1745345594513,26.93272553,144.76,144.72,20.0247399]
[1745345595128,20.0247399,144.75,144.68,107.97]
[1745345595300,20.0247399,144.74,144.7,20.0247399]
[1745345595618,24.1779497,144.76,144.7,20.0247399]
[1745345595828,20.0247399,144.75,144.71,20.0247399]
[1745345596713,6.90894016,144.74,144.71,20.0247399]
[1745345597823,6.90846286,144.75,144.71,20.0247399]
[1745345599005,20.0247399,144.75,144.71,20.0247399]
[1745345599202,17.26996407,144.76,144.68,107.97]
[1745345599423,12.82372677,144.75,144.7,12.82372677]
[1745345600325,17.26996407,144.76,144.7,12.82372677]
[1745345600505,12.82372677,144.75,144.7,12.82372677]
[1745345601021,6.90894016,144.74,144.7,12.82372677]
[1745345601503,6.90894016,144.74,144.68,26.0]
[1745345601706,19.73266693,144.74,144.69,12.82372677]
[1745345601904,6.90894016,144.74,144.7,12.82372677]
[1745345602513,6.90894016,144.74,144.67,0.063]
[1745345602719,12.82372677,144.69,144.67,0.063]
[1745345602896,42.83093944,144.74,144.67,12.88672677]
[1745345602897,24.18129058,144.74,144.67,12.88672677]
[1745345603100,6.91037246,144.71,144.67,0.063]
[1745345603426,19.73409923,144.71,144.67,0.063]
[1745345603602,20.04824342,144.7,144.67,0.063]
[1745345603805,6.91037246,144.71,144.67,0.063]
[1745345604012,26.95861588,144.71,144.67,0.063]
[1745345604203,44.23454705,144.71,144.67,0.063]
[1745345604410,6.91037246,144.71,144.68,20.04824342]
[1745345604610,6.91037246,144.71,144.67,20.11124342]
[1745345604831,6.91037246,144.71,144.68,20.04824342]
[1745345605325,37.32193287,144.73,144.67,0.063]
[1745345605326,6.90989496,144.72,144.7,20.04824342]
[1745345605703,6.90894016,144.74,144.7,20.04824342]
[1745345606727,6.90894016,144.74,144.71,20.04824342]
[1745345607226,24.17966327,144.75,144.71,20.04824342]
[1745345608524,24.17966327,144.75,144.67,34.50890126]
[1745345608829,24.17966327,144.75,144.7,20.04824342]
[1745345609010,44.22790669,144.75,144.7,20.04824342]
[1745345610429,44.22790669,144.75,144.67,34.50890126]
[1745345610729,6.90846286,144.75,144.71,20.04824342]
[1745345610929,6.90846286,144.75,144.72,20.04824342]
[1745345611832,26.95622905,144.76,144.71,20.04824342]
[1745345612631,6.90798563,144.76,144.72,20.04824342]
[1745345613010,20.04824342,144.74,144.67,109.5667]
[1745345613343,44.22619312,144.76,144.7,20.04824342]
[1745345613513,20.04824342,144.75,144.7,20.04824342]
[1745345614037,20.04824342,144.74,144.69,20.04824342]
[1745345614364,24.1779497,144.76,144.67,109.5667]
[1745345614543,64.22619312,144.76,144.68,20.04824342]
[1745345614832,6.90986904,144.73,144.68,20.04824342]
[1745345615130,6.90986904,144.73,144.69,20.04824342]
[1745345615436,6.90986904,144.73,144.67,27.5967]
[1745345615437,26.95811246,144.73,144.67,27.5967]
[1745345615635,20.04824342,144.72,144.67,46.11124342]
[1745345615834,24.18341288,144.73,144.67,46.11124342]
[1745345616154,44.2316563,144.73,144.68,20.04824342]
[1745345617018,44.2316563,144.73,144.67,46.11124342]
[1745345617333,20.04824342,144.72,144.67,46.11124342]
[1745345617839,24.18341288,144.73,144.67,26.063]
[1745345618034,26.95811246,144.73,144.68,20.04824342]
[1745345618242,6.90986904,144.73,144.68,20.04824342]
[1745345618433,6.90986904,144.73,144.69,20.04824342]
[1745345619028,26.0,144.76,144.7,20.04824342]
[1745345619330,20.04824342,144.75,144.7,20.04824342]
[1745345619971,26.95670628,144.75,144.7,20.04824342]
[1745345620336,26.95670628,144.75,144.67,26.063]
[1745345620539,26.95670628,144.75,144.7,20.04824342]
[1745345621355,26.95670628,144.75,144.67,26.063]
[1745345621644,26.95670628,144.75,144.7,20.04824342]
[1745345622924,44.22786344,144.75,144.7,20.04824342]
[1745345623837,20.04824342,144.74,144.69,20.04824342]
[1745345624529,20.04824342,144.73,144.68,20.04824342]
[1745345625335,12.82496429,144.73,144.68,12.82496429]
[1745345625537,24.17962002,144.75,144.69,12.82496429]
[1745345625748,6.90941753,144.73,144.67,26.063]
[1745345625936,6.90941753,144.73,144.69,12.82496429]
[1745345626445,6.90941753,144.73,144.67,26.063]
[1745345626644,6.90941753,144.73,144.69,12.82496429]
[1745345627252,6.90941753,144.73,144.67,26.063]
[1745345627253,6.90846286,144.75,144.71,12.82496429]
[1745345627446,6.90846286,144.75,144.72,12.82496429]
[1745345627624,19.73294992,144.76,144.71,12.82496429]
[1745345627829,12.82496429,144.75,144.68,1.6273]
[1745345628018,12.82496429,144.75,144.7,12.82496429]
[1745345628652,12.82496429,144.74,144.69,12.82496429]
[1745345629752,6.90941753,144.73,144.69,12.82496429]
[1745345629936,12.82496429,144.72,144.68,81.97]
[1745345630138,12.82496429,144.72,144.67,38.88796429]
[1745345630647,12.82496429,144.72,144.67,12.88796429]
[1745345632258,17.27354384,144.73,144.68,12.82496429]
[1745345632424,30.09850813,144.73,144.68,12.82496429]
[1745345632625,17.27354384,144.73,144.68,12.82496429]
[1745345632839,30.09850813,144.73,144.68,12.82496429]
[1745345633243,17.27354384,144.73,144.68,12.82496429]
[1745345633445,37.00792566,144.73,144.68,12.82496429]
[1745345633949,37.00792566,144.73,144.67,0.063]
[1745345633950,6.90941753,144.73,144.69,12.82496429]
[1745345634136,6.90941753,144.73,144.7,12.82496429]
[1745345634337,6.90941753,144.73,144.68,26.0]
[1745345634546,6.90941753,144.73,144.7,12.82496429]
[1745345635347,6.90941753,144.73,144.68,26.0]
[1745345635547,6.90894016,144.74,144.7,12.82496429]
[1745345636425,6.90894016,144.74,144.71,12.82496429]
[1745345637455,19.73390445,144.74,144.69,12.82496429]
[1745345638250,19.73390445,144.74,144.68,26.0]
[1745345638438,19.73390445,144.74,144.69,12.82496429]
[1745345638754,12.82496429,144.75,144.7,12.82496429]
[1745345640350,12.82496429,144.75,144.68,26.0]
[1745345640549,12.82496429,144.74,144.68,26.0]
[1745345640747,6.90894016,144.74,144.7,12.82496429]
[1745345640936,6.90894016,144.74,144.71,12.82496429]
[1745345642037,6.90846286,144.75,144.71,12.82496429]
[1745345642236,6.90846286,144.75,144.68,26.0]
[1745345642438,6.90846286,144.75,144.7,12.82496429]
[1745345643263,12.82496429,144.75,144.7,12.82496429]
[1745345644659,6.90894016,144.74,144.7,12.82496429]
[1745345644955,6.90894016,144.74,144.68,26.0]
[1745345645162,12.82496429,144.73,144.68,26.0]
[1745345645466,24.18129058,144.74,144.7,12.82496429]
[1745345649963,24.18129058,144.74,144.69,12.82496429]
[1745345650161,12.82496429,144.74,144.69,12.82496429]
[1745345650565,12.82496429,144.73,144.68,26.0]
[1745345650867,12.82496429,144.72,144.68,26.0]
[1745345651942,12.82496429,144.73,144.68,38.82496429]
[1745345652142,6.90989496,144.72,144.68,38.82496429]
[1745345652351,19.73485925,144.72,144.68,26.0]
[1745345652552,19.73485925,144.72,144.67,0.063]
[1745345652553,37.00959667,144.72,144.67,0.063]
[1745345652750,37.00959667,144.72,144.67,12.88796429]
[1745345659560,24.18463238,144.72,144.68,12.82496429]
[1745345660873,37.00959667,144.72,144.68,12.82496429]
[1745345662575,12.82496429,144.73,144.68,12.82496429]
[1745345664256,12.82496429,144.73,144.67,0.063]
[1745345664454,12.82496429,144.73,144.68,12.82496429]
[1745345664973,6.90989496,144.72,144.68,12.82496429]
[1745345666354,6.90989496,144.72,144.67,0.063]
[1745345666862,6.90989496,144.72,144.68,12.82496429]
[1745345667884,6.90989496,144.72,144.67,0.063]
[1745345668053,37.00959667,144.72,144.67,12.88796429]
[1745345669988,24.18463238,144.72,144.68,12.82496429]
[1745345670277,6.90989496,144.72,144.69,12.82496429]
[1745345671369,6.90989496,144.72,144.7,12.82496429]
[1745345671967,24.18138333,144.74,144.7,12.82496429]
[1745345672189,37.00634762,144.74,144.69,12.82496429]
[1745345673785,37.00634762,144.74,144.67,0.063]
[1745345673981,37.00634762,144.74,144.69,12.82496429]
[1745345675780,6.90750846,144.77,144.72,38.82496429]
[1745345675965,0.03,144.8,144.76,12.82496429]
[1745345676164,0.03,144.8,144.78,12.82496429]
[1745345676358,0.03,144.8,144.77,12.82496429]
[1745345677063,0.03,144.8,144.79,12.82496429]
[1745345678166,0.03,144.8,144.79,38.82496429]
[1745345678799,0.03,144.84,144.81,46.72]
[1745345678968,0.03,144.86,144.85,38.82496429]
[1745345679163,0.03,144.86,144.85,45.72865776]
[1745345680373,0.03,144.91,144.85,45.72865776]
[1745345680375,10.676449,144.93,144.9,26.0]
[1745345680606,10.676449,144.93,144.92,12.82496429]
[1745345681371,0.03,144.93,144.92,12.82496429]
[1745345681987,0.03,144.93,144.9,38.82496429]
[1745345682890,0.03,144.93,144.91,12.82496429]
[1745345683282,12.82496429,144.92,144.83,6.0611]
[1745345683487,12.82496429,144.9,144.85,12.82496429]
[1745345683788,12.82496429,144.9,144.85,38.82496429]
[1745345684787,6.90178756,144.89,144.85,26.0]
[1745345685300,6.90178756,144.89,144.85,45.99282335]
[1745345685473,6.90178756,144.89,144.85,19.99282335]
[1745345687299,26.89461091,144.89,144.85,19.99282335]
[1745345687804,26.89461091,144.89,144.84,19.99282335]
[1745345688389,19.99282335,144.88,144.84,19.99282335]
[1745345688580,19.99282335,144.88,144.82,81.97]
[1745345688775,19.99282335,144.88,144.83,19.99282335]
[1745345689277,19.99282335,144.88,144.84,19.99282335]
[1745345689479,44.14907981,144.89,144.84,19.99282335]
[1745345689891,44.14907981,144.89,144.82,81.97]
[1745345690096,44.14907981,144.89,144.84,19.99282335]
[1745345691402,19.99282335,144.88,144.83,19.99282335]
[1745345692282,19.99282335,144.87,144.82,101.96282335]
[1745345692597,19.99282335,144.85,144.8,19.99282335]
[1745345692797,6.90417011,144.84,144.81,19.99282335]
[1745345694880,26.89651682,144.85,144.8,19.99282335]
[1745345695393,26.89651682,144.85,144.81,19.99282335]
[1745345695600,26.89651682,144.85,144.79,107.97]
[1745345695908,6.90369347,144.85,144.81,19.99282335]
[1745345696986,6.90369347,144.85,144.79,26.0]
[1745345697187,6.90369347,144.85,144.82,19.99282335]
[1745345697699,6.90131124,144.9,144.84,19.99282335]
[1745345698008,6.90131124,144.9,144.88,19.99282335]
[1745345698809,6.900835,144.91,144.88,19.99282335]
[1745345699485,6.900835,144.91,144.87,19.99282335]
[1745345700511,6.900835,144.91,144.83,101.96282335]
[1745345700512,19.99282335,144.9,144.83,81.97]
[1745345700724,19.99282335,144.88,144.84,19.99282335]
[1745345700915,6.90226394,144.88,144.82,26.0]
[1745345701207,6.90226394,144.88,144.84,19.99282335]
[1745345702007,6.90226394,144.88,144.85,19.99282335]
[1745345703319,6.90178756,144.89,144.86,19.99282335]
[1745345703513,6.90178756,144.89,144.82,26.0]
[1745345703815,6.90178756,144.89,144.85,19.99282335]
[1745345705513,6.90178756,144.89,144.88,19.99282335]
[1745345706020,6.90178756,144.89,144.87,19.99282335]
[1745345706689,6.900835,144.91,144.88,19.99282335]
[1745345708308,20.02282335,144.93,144.88,19.99282335]
[1745345708309,6.90035881,144.92,144.88,19.99282335]
[1745345709315,6.90035881,144.92,144.84,88.8739556]
[1745345709316,6.90035881,144.92,144.89,12.79036038]
[1745345710020,6.93009061,144.93,144.91,12.79036038]
[1745345710515,0.03,144.93,144.91,12.79036038]
[1745345711519,6.92997619,144.93,144.87,6.90241975]
[1745345711815,6.92997619,144.93,144.9,12.79036038]
[1745345712513,12.82036038,144.93,144.87,81.97]
[1745345712692,0.03,144.93,144.9,12.79036038]
[1745345714424,0.03,144.93,144.91,12.79036038]
[1745345715120,0.03,144.93,144.9,12.79036038]
[1745345715415,0.03,144.93,144.91,12.79036038]
[1745345717521,0.03,144.93,144.92,12.79036038]
[1745345719904,0.03,144.93,144.92,120.31036805]
[1745345721030,0.03,144.93,144.92,94.76036038]
[1745345724433,0.03,144.93,144.91,38.79036038]
[1745345724722,0.03,144.93,144.91,12.79036038]
[1745345726032,0.03,144.93,144.92,12.79036038]
[1745345728119,0.03,144.93,144.91,12.79036038]
[1745345730841,0.03,144.93,144.9,94.76036038]
[1745345731216,0.03,144.93,144.91,12.79036038]
[1745345731532,0.03,144.93,144.89,26.0]
[1745345731832,0.03,144.93,144.9,12.79036038]
[1745345732210,0.03,144.93,144.91,12.79036038]
[1745345732737,12.82036038,144.93,144.88,81.97]
[1745345732919,12.82036038,144.93,144.89,12.79036038]
[1745345733120,0.03,144.93,144.9,12.79036038]
[1745345733434,0.03,144.93,144.91,12.79036038]
[1745345733943,0.03,144.93,144.92,12.79036038]
[1745345734479,0.03,144.93,144.91,12.79036038]
[1745345734643,0.03,144.93,144.88,81.97]
[1745345734819,0.03,144.93,144.9,12.79036038]
[1745345735144,0.03,144.93,144.89,12.79036038]
[1745345735846,6.9298827,144.93,144.89,12.79036038]
[1745345736452,19.72024308,144.93,144.88,94.76036038]
[1745345736933,19.72024308,144.93,144.88,12.79036038]
[1745345737141,19.72024308,144.93,144.89,12.79036038]
[1745345737643,12.79036038,144.92,144.86,109.5261]
[1745345737854,6.90035881,144.92,144.88,12.79036038]
[1745345738216,6.90035881,144.92,144.89,12.79036038]
[1745345739426,6.90035881,144.92,144.9,12.79036038]
[1745345739841,0.03,144.93,144.9,12.79036038]
[1745345740045,0.03,144.93,144.89,12.79036038]
[1745345743042,0.03,144.93,144.91,12.79036038]
[1745345745851,0.03,144.93,144.87,88.8725209]
[1745345746028,0.03,144.93,144.9,12.79036038]
[1745345746849,0.03,144.93,144.87,88.8725209]
[1745345747052,0.03,144.93,144.9,12.79036038]
[1745345747255,0.03,144.93,144.87,81.97]
[1745345747554,12.82036038,144.93,144.88,12.79036038]
[1745345748851,6.90035881,144.92,144.88,12.79036038]
[1745345753959,19.69071919,144.92,144.87,81.97]
[1745345754161,19.69071919,144.92,144.87,94.76036038]
[1745345754360,6.90035881,144.92,144.88,12.79036038]
[1745345754548,6.90035881,144.92,144.86,26.0]
[1745345754747,6.90035881,144.92,144.88,12.79036038]
[1745345755259,19.69071919,144.92,144.87,12.79036038]
[1745345756136,19.69071919,144.92,144.86,26.0]
[1745345756337,19.69071919,144.92,144.87,12.79036038]
[1745345757258,6.90035881,144.92,144.89,12.79036038]
[1745345757442,6.9298827,144.93,144.89,12.79036038]
[1745345760653,19.72024308,144.93,144.89,12.79036038]
[1745345761164,6.9298827,144.93,144.89,12.79036038]
[1745345762474,6.9298827,144.93,144.86,107.97]
[1745345762475,0.03,144.93,144.92,12.79036038]
[1745345762958,0.03,144.93,144.91,12.79036038]
[1745345763361,0.03,144.93,144.92,12.79036038]
[1745345763960,0.03,144.93,144.9,107.97]
[1745345764367,0.03,144.93,144.92,12.79036038]
[1745345765373,0.03,144.93,144.91,12.79036038]
[1745345766372,0.03,144.93,144.92,12.79036038]
[1745345766554,0.03,144.93,144.91,12.79036038]
[1745345770976,0.03,144.93,144.9,120.76036038]
[1745345772877,0.03,144.93,144.91,12.79036038]
[1745345773077,0.03,144.93,144.9,107.97]
[1745345773280,0.03,144.93,144.91,12.79036038]
[1745345774494,0.03,144.93,144.9,120.76036038]
[1745345775061,12.82036038,144.93,144.88,38.79036038]
[1745345775264,12.82036038,144.93,144.89,12.79036038]
[1745345775757,0.03,144.93,144.9,12.79036038]
[1745345776387,6.9298827,144.93,144.9,12.79036038]
[1745345777584,0.03,144.93,144.9,12.79036038]
[1745345777782,0.03,144.93,144.91,12.79036038]
[1745345777983,0.03,144.93,144.92,12.79036038]
[1745345778487,0.03,144.93,144.91,12.79036038]
[1745345778687,0.03,144.93,144.92,12.79036038]
[1745345781084,0.03,144.93,144.92,94.76036038]
[1745345782179,0.03,144.93,144.92,113.41000924]
[1745345786695,0.03,144.93,144.92,114.78939858]
[1745345792897,0.03,144.93,144.92,121.68975739]
[1745345793196,0.03,144.95,144.94,31.44000924]
[1745345793406,0.03,144.95,144.94,113.38000924]
[1745345795101,0.03,144.95,144.94,116.77383878]
[1745345795395,0.03,144.95,144.94,81.94]
[1745345795598,12.82036038,144.95,144.94,81.94]
[1745345797023,0.03,144.95,144.94,81.94]
[1745345798390,0.03,144.95,144.91,81.94]
[1745345798391,19.71929104,144.95,144.91,81.94]
[1745345798700,12.79036038,144.93,144.91,81.94]
[1745345799398,19.6898906,144.94,144.91,81.94]
[1745345800090,6.89953022,144.94,144.91,81.94]
[1745345800412,19.6898906,144.94,144.91,81.94]
[1745345801099,6.89953022,144.94,144.91,81.94]
[1745345801782,6.92914947,144.95,144.91,81.94]
[1745345802094,6.92914947,144.95,144.91,94.73036038]
[1745345803708,0.03,144.95,144.91,94.73036038]
[1745345803888,12.82036038,144.95,144.91,94.73036038]
[1745345804201,0.03,144.95,144.94,12.79036038]
[1745345804397,0.03,144.95,144.94,113.38000924]
[1745345806183,0.03,144.95,144.94,81.94]
[1745345807206,12.82036038,144.95,144.94,81.94]
[1745345807903,19.71929104,144.95,144.9,81.94]
[1745345808122,12.79036038,144.91,144.88,81.94]
[1745345808691,12.79036038,144.92,144.88,81.94]
[1745345808905,12.79036038,144.9,144.88,81.94]
[1745345809291,25.76875732,144.95,144.88,81.94]
[1745345809292,12.79036038,144.91,144.88,81.94]
[1745345809886,19.69124046,144.91,144.88,81.94]
[1745345810598,12.79036038,144.9,144.88,81.94]
[1745345811316,26.89171433,144.91,144.88,81.94]
[1745345813011,19.99083425,144.89,144.86,0.063]
[1745345815016,26.8927881,144.89,144.86,0.063]
[1745345816101,6.90195385,144.89,144.86,0.063]
[1745345817028,19.99083425,144.89,144.86,0.063]
[1745345817512,19.99083425,144.88,144.86,0.063]
[1745345818617,6.90274038,144.87,144.86,0.063]
[1745345819106,26.89324424,144.88,144.86,0.063]
[1745345820417,6.90240999,144.88,144.86,0.063]
[1745345821490,6.3995,144.92,144.87,19.99083425]
[1745345821724,6.90102977,144.91,144.87,19.99083425]
[1745345821923,6.90102977,144.91,144.86,82.003]
[1745345822104,19.99083425,144.9,144.86,82.003]
[1745345822412,19.99083425,144.89,144.86,82.003]
[1745345822610,19.99083425,144.9,144.86,0.063]
[1745345822915,6.90178756,144.89,144.86,0.063]
[1745345823223,19.99083425,144.88,144.86,0.063]
[1745345823399,26.89262181,144.89,144.86,0.063]
[1745345823598,19.99083425,144.88,144.86,0.063]
[1745345824721,6.90274038,144.87,144.86,0.063]
[1745345824919,19.99083425,144.88,144.86,0.063]
[1745345824920,26.89326987,144.88,144.86,0.063]
[1745345826122,6.90243562,144.88,144.86,0.063]
[1745345826430,26.89326987,144.88,144.86,0.063]
[1745345827116,6.90243562,144.88,144.86,0.063]
[1745345828300,19.99083425,144.87,144.86,0.063]
[1745345829424,6.2702,144.86,144.82,0.063]
[1745345829609,19.99083425,144.83,144.82,0.063]
[1745345829926,6.2702,144.86,144.82,0.063]
[1745345829927,19.99083425,144.85,144.82,0.063]
[1745345830126,26.89500436,144.84,144.82,0.063]
[1745345831414,19.99083425,144.83,144.82,0.063]
[1745345831625,12.80691508,144.83,144.82,0.063]
[1745345831923,19.71108519,144.84,144.82,0.063]
[1745345832516,12.80691508,144.83,144.82,0.063]
[1745345834536,19.7115619,144.83,144.82,0.063]
[1745345834726,6.90464682,144.83,144.82,0.063]
[1745345835408,6.90369347,144.85,144.82,0.063]
[1745345835918,6.2702,144.86,144.82,0.063]
[1745345836126,16.8944,144.88,144.84,12.80691508]
[1745345836599,6.90294468,144.87,144.84,12.80691508]
[1745345837223,19.70985976,144.87,144.82,82.003]
[1745345837412,19.70985976,144.87,144.82,94.80991508]
[1745345837608,6.90294468,144.87,144.83,12.80691508]
[1745345838204,19.70985976,144.87,144.82,94.80991508]
[1745345838710,36.96671072,144.87,144.82,94.80991508]
[1745345838998,19.70985976,144.87,144.82,94.80991508]
[1745345839597,19.70985976,144.87,144.82,12.86991508]
[1745345840207,19.70985976,144.87,144.82,0.063]
[1745345840208,12.80691508,144.86,144.82,0.063]
[1745345840416,12.80691508,144.85,144.82,0.063]
[1745345841127,12.80691508,144.86,144.82,0.063]
[1745345841625,19.70985976,144.87,144.82,12.86991508]
[1745345842114,6.90294468,144.87,144.83,12.80691508]
[1745345842510,19.70985976,144.87,144.82,12.86991508]
[1745345842830,19.70985976,144.87,144.82,0.063]
[1745345843014,19.70985976,144.87,144.82,12.86991508]
[1745345843217,12.80691508,144.86,144.82,0.063]
[1745345843723,12.80691508,144.86,144.82,0.4775]
[1745345844306,19.71044343,144.86,144.82,0.4775]
[1745345844815,12.80691508,144.85,144.82,0.4775]
[1745345845031,6.90352835,144.86,144.82,13.28441508]
[1745345845233,19.70986576,144.87,144.82,13.28441508]
[1745345846028,6.90295068,144.87,144.83,12.80691508]
[1745345847125,19.70986576,144.87,144.82,95.22441508]
[1745345848617,12.80691508,144.86,144.82,82.4175]
[1745345849242,6.90241883,144.88,144.84,12.80691508]
[1745345851024,6.90241883,144.88,144.82,82.4175]
[1745345851231,12.80691508,144.87,144.82,95.22441508]
[1745345851825,12.80691508,144.86,144.82,82.4175]
[1745345852538,24.15807868,144.88,144.82,0.4775]
[1745345852836,0.03,144.93,144.88,18.64964886]
[1745345853034,0.03,144.93,144.91,12.80691508]
[1745345855334,0.03,144.93,144.88,18.64964886]
[1745345855618,0.03,144.93,144.9,19.97622938]
[1745345856840,0.03,144.93,144.91,19.97622938]
[1745345857213,20.00622938,144.93,144.89,19.97622938]
[1745345858125,0.03,144.93,144.89,19.97622938]
[1745345859038,0.03,144.93,144.9,19.97622938]
[1745345859336,0.03,144.93,144.89,19.97622938]
[1745345859550,20.00622938,144.93,144.86,26.0]
[1745345859748,20.00622938,144.93,144.88,19.97622938]
[1745345860241,0.03,144.93,144.89,19.97622938]
[1745345860544,0.03,144.93,144.9,19.97622938]
[1745345861821,0.03,144.93,144.89,19.97622938]
[1745345862537,0.03,144.93,144.9,19.97622938]
[1745345862835,0.03,144.93,144.91,19.97622938]
[1745345864219,0.03,144.93,144.92,19.97622938]
[1745345864621,0.03,144.93,144.92,101.91622938]
[1745345864916,0.03,144.93,144.92,102.33072938]
[1745345865642,0.03,144.93,144.92,82.3545]
[1745345869164,0.03,144.93,144.92,20.39072938]
[1745345871246,0.03,144.93,144.92,0.4145]
[1745345874327,6.9298827,144.93,144.92,0.4145]
[1745345875030,0.03,144.93,144.92,0.4145]
[1745345875853,0.03,144.93,144.92,209.15037824]
[1745345876150,6.92625021,145.01,144.95,18.64964886]
[1745345876362,0.03,145.01,144.96,19.97622938]
[1745345876654,20.00622938,145.01,144.96,19.97622938]
[1745345877150,20.00622938,144.99,144.94,45.97622938]
[1745345877656,19.97622938,144.98,144.94,26.0]
[1745345877946,19.97622938,144.98,144.93,19.97622938]
[1745345878331,6.89797889,144.97,144.93,19.97622938]
[1745345878831,26.87420827,144.97,144.92,146.56587824]
[1745345879041,6.89797889,144.97,144.93,19.97622938]
[1745345879359,6.89797889,144.97,144.92,107.94]
[1745345879360,26.87420827,144.97,144.92,107.94]
[1745345879557,19.97622938,144.96,144.92,107.94]
[1745345880067,19.97622938,144.96,144.91,19.97622938]
[1745345880424,6.89797889,144.97,144.93,19.97622938]
[1745345881023,6.89797889,144.97,144.9,126.58964886]
[1745345881243,26.87420827,144.97,144.92,19.97622938]
[1745345881858,19.97622938,144.96,144.91,19.97622938]
[1745345882363,19.97622938,144.95,144.9,146.56587824]
[1745345882544,6.89940665,144.94,144.9,146.56587824]
[1745345882932,6.89940665,144.94,144.9,127.91622938]
[1745345883138,26.87563603,144.94,144.9,81.94]
[1745345883955,6.89940665,144.94,144.9,101.91622938]
[1745345884736,6.89940665,144.94,144.91,19.97622938]
[1745345885234,6.89845474,144.96,144.92,19.97622938]
[1745345885849,6.89845474,144.96,144.93,19.97622938]
[1745345886863,6.89845474,144.96,144.92,102.33072938]
[1745345887231,6.89845474,144.96,144.93,19.97622938]
[1745345887966,6.89845474,144.96,144.92,102.33072938]
[1745345888263,1.6261,144.98,144.92,82.3545]
[1745345888468,6.92721068,144.99,144.96,19.97622938]
[1745345889570,6.92721068,144.99,144.95,19.97622938]
[1745345889965,26.90344006,144.99,144.94,19.97622938]
[1745345890157,19.97622938,144.98,144.93,120.56587824]
[1745345890357,6.89797889,144.97,144.93,120.56587824]
[1745345891885,6.89797889,144.97,144.93,101.91622938]
[1745345892574,6.89797889,144.97,144.92,0.4145]
[1745345892868,6.89797889,144.97,144.93,19.97622938]
[1745345893669,6.89797889,144.97,144.94,19.97622938]
[1745345893867,26.87373248,144.98,144.93,19.97622938]
[1745345895663,19.67892773,144.98,144.93,12.78142463]
[1745345895975,12.78142463,144.97,144.91,81.94]
[1745345896159,12.78142463,144.96,144.91,94.72142463]
[1745345896362,12.78142463,144.97,144.92,12.78142463]
[1745345897969,6.89845474,144.96,144.92,12.78142463]
[1745345898467,6.89845474,144.96,144.93,12.78142463]
[1745345898864,12.78142463,144.94,144.88,18.64964886]
[1745345899165,12.78142463,144.95,144.9,12.78142463]
[1745345899475,6.89845474,144.96,144.91,12.78142463]
[1745345901759,6.89845474,144.96,144.92,12.78142463]
[1745345903177,6.89845474,144.96,144.93,12.78142463]
[1745345903956,6.89797889,144.97,144.93,12.78142463]
[1745345907987,6.89797889,144.97,144.93,13.19592463]
[1745345910581,0.03,144.99,144.96,12.78142463]
[1745345910761,0.03,144.99,144.98,12.78142463]
[1745345910955,0.03,144.99,144.96,81.94]
[1745345911174,0.03,144.99,144.97,12.78142463]
[1745345911380,0.03,144.99,144.98,12.78142463]